Cogmind - Beta 14 @@@ ROGUE MODE // 2024.09.18 @ 17:13:30 Player: Duduxx Result: Destroyed self with Grenade Launcher Performance ------------- Evolutions (0) 0 Regions Visited (1) 200 Robots Destroyed (9) 45 Value Destroyed (173) 173 Prototype IDs (0) 0 Alien Tech Used (0) 0 Bonus (0) 0 TOTAL SCORE: 418 Bonus ------- None Cogmind --------- Core Integrity 0/250 Matter 74/300 Energy 158/250 System Corruption 0% Temperature Cool (0) Movement Core (350) Ox6 Location -10/Materials Parts ------- > --- POWER (1) -------- Ion Engine > --- PROPULSION (2) --- (None) > --- UTILITY (2) ------ Medium Storage Unit > --- WEAPON (2) ------- Grenade Launcher Datajack > --- INVENTORY (10) --- Light Ion Engine Small Storage Unit Hacking Suite Grenade Launcher Datajack Peak State ------------ > --- POWER ------------ Ion Engine > --- PROPULSION ------- Light Treads Light Treads > --- UTILITY ---------- Small Storage Unit > --- WEAPON ----------- Medium Laser Light Assault Rifle > --- INVENTORY -------- Light Ion Engine [Rating: 6] Favorites ----------- Power Ion Engine Engine Ion Engine Propulsion Light Treads Treads Light Treads Utility Small Storage Unit Storage Small Storage Unit Weapon Light Assault Rifle Energy Gun Medium Laser Ballistic Gun Light Assault Rifle Launcher Grenade Launcher Special Melee Weapon Datajack Build | -11 -10 ------- Run | Yrd Mat Slots Evolved . | . . Power . | . . Propulsion . | . . Utility . | . . Weapon . | . . Parts Attached 12 | 6 6 Power 2 | 1 1 Engine 2 | 1 1 Core . | . . Reactor . | . . Propulsion 2 | 2 . Treads 2 | 2 . Leg . | . . Wheel . | . . Hover . | . . Flight . | . . Utility 2 | 1 1 Device . | . . Storage 2 | 1 1 Processor . | . . Hackware . | . . Protection . | . . Artifact . | . . Weapon 6 | 2 4 Energy Gun 1 | 1 . Energy Cannon . | . . Ballistic Gun 1 | 1 . Ballistic Cannon . | . . Launcher 3 | . 3 Special Weapon . | . . Impact Weapon . | . . Slashing Weapon . | . . Piercing Weapon . | . . Special Melee Weapon 1 | . 1 Unidentified Prototypes . | . . Parts Lost 6 | . 6 Power 1 | . 1 Propulsion 2 | . 2 Utility . | . . Weapon 3 | . 3 Highest Loss Streak 5 | . 5 To Critical Strikes . | . . Average Slot Usage (%) 60 | . 60 Engine 8 | . 8 Treads 15 | . 15 Storage 12 | . 12 Energy Gun 5 | . 5 Ballistic Gun 13 | . 13 Launcher 1 | . 1 Special Melee Weapon 2 | . 2 Peak Build Rating 6 | 6 6 Average Rating 4 | 4 4 On Entrance 3 | . 6 Naked Turns . | . . Heaviest Build 19 | 13 19 Greatest Support 40 | 40 40 Greatest Overweight (x) 6 | 1 6 Average Overweight (x) . | . . Largest Inventory Capacity 10 | 8 10 Average Capacity 7 | 6 7 Most Carried 6 | 1 6 Average Carried 2 | . 2 Final Capacity 10 | 8 10 Final Carried 5 | 1 5 Class Distribution -------------------- 100% | Mutant Dominant Class ---------------- Mutant | -10/Materials Resources | -11 -10 ----------- Run | Yrd Mat Matter Collected 146 | 94 52 Remotely . | . . Salvage Created 215 | . 215 Parts 16 | . 16 Haulers Intercepted 1 | . 1 Recyclers Shooed . | . . Parts Field Recycled . | . . Retrieved Matter . | . . Parts Self-Destructed . | . . Prevented . | . . Kills | -11 -10 ------- Run | Yrd Mat Combat Hostiles Destroyed 4 | . 4 Guns 2 | . 2 AOE 2 | . 2 Classes Destroyed 7 | . 7 Worker 1 | . 1 Hauler 1 | . 1 Recycler 1 | . 1 Mechanic 1 | . 1 Watcher 1 | . 1 Swarmer 1 | . 1 Grunt 3 | . 3 Best Kill Streak 7 | . 7 Combat Bots Only 4 | . 4 Max Kills in Single Turn 3 | . 3 Gunslinging . | . . Exploded 1 | . 1 Melee . | . . Uniques/NPCs Destroyed . | . . Combat | -11 -10 -------- Run | Yrd Mat Hostile Shots Fired 103 | . 103 Missed 30 | . 30 Damage Taken 913 | . 913 Core 257 | . 257 Absorbed by Shields . | . . Core Remaining (%) 100 | 100 . Volleys Fired 31 | . 31 Largest 2 | . 2 Hottest 70 | . 70 Shots Fired 44 | . 44 Gun 38 | . 38 Cannon . | . . Launcher 6 | . 6 Special . | . . Kinetic 30 | . 30 Thermal 8 | . 8 Explosive 6 | . 6 Electromagnetic . | . . Robot Hit Streak 5 | . 5 Robot Miss Streak 2 | . 2 Penetration Max . | . . Secondary Targets . | . . Shots Hit Robots 31 | . 31 Core Hits 21 | 1 20 Critical Kills . | . . Critical Parts Destroyed . | . . Critical Strikes . | . . Melee Attacks 2 | . 2 Impact . | . . Slashing . | . . Piercing . | . . Sneak Attacks . | . . Combat Hostiles . | . . Follow-up Attacks . | . . Damage Inflicted 661 | 5 656 Guns 255 | . 255 Cannons . | . . Explosions 401 | . 401 Melee . | . . Ramming 5 | 5 . Kinetic 179 | . 179 Thermal 76 | . 76 Explosive 401 | . 401 Electromagnetic . | . . Impact . | . . Slashing . | . . Piercing . | . . Highest Corruption . | . . Average Corruption . | . . Corruption Purged . | . . Corruption Blocked . | . . Overload Shots . | . . Overflow Damage 27 | . 27 Projectiles . | . . Explosions 27 | . 27 Melee . | . . Knockbacks . | . . Impact . | . . Kinetic . | . . Secondary . | . . Self-Inflicted Damage 91 | . 91 Shots 4 | . 4 Rammed 2 | 2 . Targets Rammed 2 | 2 . Kicked . | . . Crushed . | . . Highest Temperature 224 | . 224 Average Temperature 90 | . 90 Received Heat Transfer 339 | . 339 Siege Activations . | . . Robots Corrupted . | . . Combat Hostiles . | . . Parts Fried . | . . Impact Corruptions . | . . Robots Melted . | . . Combat Hostiles . | . . Parts Melted . | . . Heat Transferred 222 | . 222 Parts Sabotaged . | . . Parts Stolen . | . . Parts Stripped . | . . Power Chain Reactions . | . . Alert | -11 -10 ------- Run | Yrd Mat Peak Influence 146 | . 146 Initial . | . . Average 46 | . 65 Maximum Alert Level . | . . Low Security (%) 100 | 100 100 Level 1 . | . . Level 2 . | . . Level 3 . | . . Level 4 . | . . Level 5 . | . . High Security . | . . Max Security . | . . Squads Dispatched 1 | . 1 Investigation . | . . Extermination . | . . Reinforcement 1 | . 1 Assault . | . . Garrison . | . . Intercept . | . . Searches Triggered . | . . Construction Impeded . | . . Haulers Reinforced . | . . Active Scanning Responses . | . . Cargo Convoy Interrupts . | . . Stealth | -11 -10 --------- Run | Yrd Mat Distress Signals 1 | . 1 Communications Jammed . | . . Distress Signals . | . . Times Spotted 8 | . 8 Peak Tracking Total 5 | . 5 Tactical Retreats . | . . Traps | -11 -10 ------- Run | Yrd Mat Traps Triggered . | . . Indirectly . | . . Trap Hack Attempts . | . . Triggered . | . . Disarmed . | . . Reprogrammed . | . . Reused . | . . Traps Extracted . | . . Installed . | . . Triggered . | . . Machines | -11 -10 ---------- Run | Yrd Mat Machines Disabled 1 | . 1 Max in Single Turn 1 | . 1 Machines Repaired . | . . Machines Dismantled . | . . Machines Sabotaged . | . . Overloaded Fab Kills . | . . Hacking | -11 -10 --------- Run | Yrd Mat Machines Accessed . | . . Terminals . | . . Fabricators . | . . Repair Stations . | . . Recycling Units . | . . Scanalyzers . | . . Garrison Access . | . . Total Hacks . | . . Successful . | . . Failed . | . . Catastrophic . | . . Database Lockouts . | . . Manual . | . . Terminals . | . . Fabricators . | . . Repair Stations . | . . Recycling Units . | . . Scanalyzers . | . . Garrison Access . | . . Terminal Hacks . | . . Fabricator Hacks . | . . Repair Station Hacks . | . . Recycling Unit Hacks . | . . Scanalyzer . | . . Garrison Access Hacks . | . . Unauthorized Hacks . | . . Terminals . | . . Fabricators . | . . Repair Stations . | . . Recycling Units . | . . Scanalyzers . | . . Garrison Access . | . . Data Cores Recovered . | . . Used . | . . Hacking Detections . | . . Full Trace Events . | . . Feedback Events . | . . Feedback Blocked . | . . Robot Schematics Acquired . | . . Robots Built . | . . Authchips . | . . Time . | . . Total Robot Build Rating . | . . Part Schematics Acquired . | . . Parts Built . | . . Authchips . | . . Time . | . . Total Part Build Rating . | . . Parts Repaired . | . . Time . | . . Parts Recycled . | . . Recycled Matter . | . . Retrieved Matter . | . . Retrieved Components . | . . Parts Scanalyzed . | . . Part Schematics Acquired . | . . Parts Damaged . | . . Bothacking | -11 -10 ------------ Run | Yrd Mat Used RIF Installer . | . . Robots Hacked 1 | . 1 Non-combat 1 | . 1 Combat . | . . Robot Hacks Applied 1 | . 1 no_distress 1 | . 1 Relay Couplers Released . | . . Fabnet Peak Effective % . | . . Robots Rewired . | . . Allies Hacked . | . . Hacks Repelled . | . . Allies | -11 -10 -------- Run | Yrd Mat Total Allies . | . . Largest Group . | . . Highest-Rated Group . | . . Highest-Rated Ally . | . . Total Orders . | . . Ally Attacks . | . . Total Damage . | . . Kills . | . . Allies Corrupted . | . . Allies Melted . | . . Intel | -11 -10 ------- Run | Yrd Mat Robot Analysis Total . | . . Derelict Logs Recovered . | . . Drone Launches . | . . Drone Recoveries . | . . Exploration | -11 -10 ------------- Run | Yrd Mat Turns Passed 284 | 85 199 Spaces Moved 137 | 49 88 Core 52 | 6 46 Treads 85 | 43 42 Legs . | . . Wheels . | . . Hover . | . . Flight . | . . Fastest Speed 50 | 50 50 Average Speed 136 | 149 129 Slowest Speed 350 | 160 350 Overloaded Moves . | . . Propulsion Burnouts . | . . Robots Hopped . | . . Cave-ins Triggered . | . . Exploration Rate (%) 14 | 4 24 Regions Visited 1 Branch Regions . Pre-discovered Areas . | . . Known Exits Taken . | . . Unknown Exits Taken 1 | 1 . Scrap Searched . | . . Spaces Dug . | . . Terrain Destroyed 17 | . 17 Melee . | . . Projectile . | . . AOE 17 | . 17 Terrain Rammed . | . . Walls Destroyed . | . . Machines Disabled . | . . Actions | -11 -10 --------- Run | Yrd Mat Total 192 | 57 135 Wait . | . . Move 136 | 48 88 Hop . | . . Pick Up 6 | 1 5 Fast Attach 10 | 6 4 Attach 2 | . 2 Detach 2 | . 2 Swap . | . . Drop 1 | . 1 Fire 31 | . 31 Melee 2 | . 2 Ram . | . . Kick . | . . Crush 2 | 2 . Escape Stasis . | . . Rewire . | . . Trap . | . . Miscellaneous . | . . Route ------- -11/Scrapyard -10/Materials (discovered 1 exit: [*Mat]) History --------- Turn | Location | Event 9 | -11/Scrapyard | Discovered new exit (range 16) 86 | -11/Scrapyard | Entered Materials 181 | -10/Materials | Core integrity fell below 50% 197 | -10/Materials | Core integrity fell below 20% 233 | -10/Materials | Lost 5 parts (1p2n2w) 237 | -10/Materials | Discovered new exit (range 7) 285 | -10/Materials | Destroyed self with Grenade Launcher Last Messages --------------- 00264_ K-01 Serf cleans the Atomic Centrifuge. 00264_ R-06 Scavenger collects Grenade Launcher. 00265_ K-01 Serf collects debris. 00266_ Acquired 40 matter. 00267_ Acquired Med. Storage Unit. 00268_ K-01 Serf collects debris. 00269_ K-01 Serf cleans the Atomic Centrifuge. 00271_ K-01 Serf collects debris. 00271_ R-06 Scavenger collects Sml. Laser. 00273_ K-01 Serf collects debris. 00275_ Acquired Ion Engine. 00276_ K-01 Serf collects debris. 00277_ R-06 Scavenger collects Weight Redist. System. 00278_ Lgt. Assault Rifle destroyed. 00278_ K-01 Serf collects debris. 00279_ Acquired Datajack. 00279_ K-01 Serf collects debris. 00281_ R-06 Scavenger collects Datajack. 00282_ K-01 Serf collects debris. Map ----- +----------------------------------------------------+ | ???????????# +??????????????????????????? | | ???????????# #??????????????????????????? | | ???????????# #??????????????????????????? | | ???????????######## #??????????????????????????? | | ??????????????????# #??????????????????????????? | | ??????????????????# #??????????????????????????? | | ??????????????????# #??????????????????????????? | | ??????????????????# #??????????????????????????? | | ??????????????????# #??????????????????????????? | | ??????????????????# #????????????? ??????????? | | ??????????????????# #???????????% ??????????? | | ??????????????"""?# #????????? "???????????? | | ????????????? """ # #????????? ""??????????? | | ????????????? # ####?##?T """?????????? | | ??????# ######### ## ## ##" ????????? | | ??????# ^^ ######## ????????? | | ????? ^ s ???????????? | | ????? #???????????????? | | ?????? ^ % % #???????????????? | | ?????? """ % % #???????????????? | | ???????####### """ #???????????????? | | ?????????????# """ +???????????????? | | ?????????????# | s######???????????????? | | ?????????????# ] r ##???????????????????? | | ????????"" ??# """ ]]] #????????????????????? | | ????????? # "" k /@ #????????????????????? | | ??????????? + """ k k// #????????????????????? | | ?????????????# k ! #?????????????????????? | | ?????????????# #?????????????????????? | | ?????????????# ###+#####?????????????????? | | ?????????????+ # #?????????????????? | | ?????????????#+##### # " #?????????????????? | | ???????????????????# # "" #?????????????????? | | ???????????????????# # "" #?????????????????? | | ???????????????????# # """ #?????????????????? | | ???????????????????# + "" #?????????????????? | | ???????????????????# # """ #?????????????????? | | ???????????????????# # """ #?????????????????? | | ???????????????????# # """ #?????????????????? | | ???????????????????#^^ # " #?????????????????? | | ???????????????????# # #?????????????????? | | ???????????????????# #########?????????????????? | | ???????????????????# < #?????????????????????????? | | ???????????????????# #?????????????????????????? | | ???????????????????#####?????????????????????????? | | ?????????????????????????????????????????????????? | | ?????????????????????????????????????????????????? | | ?????????????????????????????????????????????????? | | ?????????????????????????????????????????????????? | | | +----------------------------------------------------+ Best States ------------- Heat Dissipation 25 Energy Generation 10 Energy Capacity 250 Matter Stores 150 Matter Capacity 300 Sight Range 16 Terrain Scan Density 10 Evasion (%) 40 Recoil Reduction 2 Item Schematics ----------------- None Robot Schematics ------------------ None Fabricated ------------ Nothing Alien Tech Used ----------------- None Achievements -------------- None Challenges ------------ None Game ------ Seed ScrapBattleShearcannon Manual? 0 Play Time 00:05:03 Cumulative 49.7 hours Start 2024.09.18 @ 17:10:48 End 2024.09.18 @ 17:13:30 Sessions 1 Manual Loads 0 Difficulty Rogue Special Mode None Game No. 111 Rogue 111 Adventurer 0 Explorer 0 Win Type - Total 0 Types 0/0/0/0/0/0/0/0/0 Lore% 17 Gallery% 34 Achievement% 27 Wizard Run 0 Options --------- Layout 1 ASCII 0 Keyboard 1 Movement Arrows Keybinds 0 Fullscreen 1 Font 24/Smallcaps Map View 50x35 Zoom Use 0% Tactical HUD 1 Map Filters NONE Filters NONE Steam 1 RUN: e5d1c2df-5a3d-4aa3-b849-97bdedf0c7c5